bitfinex-derivatives/quotes_ETHF0:USTF0_20241007
["timestamp","ask_amount","ask_price","bid_price","bid_amount"]
[1728322638576,0.4031,2472.7,2472.6,3.56449]
[1728322638888,0.40447,2472.7,2472.6,3.56449]
[1728322639381,0.3931,2472.8,2472.6,3.56449]
[1728322639382,0.79756,2472.8,2472.7,0.40447]
[1728322641078,1.01107,2473.0,2472.6,3.16]
[1728322641284,0.40445,2472.9,2472.8,3.56444]
[1728322641781,0.4193,2473.1,2472.8,3.16]
[1728322641982,0.4053,2473.2,2473.0,3.16]
[1728322642182,0.4053,2473.2,2473.1,0.40441]
[1728322642384,0.40438,2473.3,2473.0,3.5568]
[1728322642582,0.40438,2473.3,2473.2,3.56439]
[1728322642984,0.4109,2473.6,2473.2,3.16]
[1728322643185,0.40436,2473.5,2473.4,0.40434]
[1728322643489,0.40436,2473.5,2473.4,3.56434]
[1728322645989,0.40432,2473.7,2473.6,0.40431]
[1728322646191,0.40432,2473.7,2473.6,3.56431]
[1728322647193,0.40432,2473.7,2473.6,3.56432]
[1728322647884,1.43003,2473.9,2473.6,3.16]
[1728322648080,0.40431,2473.8,2473.7,0.4043]
[1728322648285,0.40431,2473.8,2473.7,3.5643]
[1728322649085,0.40431,2473.8,2473.7,3.16]
[1728322650790,0.40431,2473.7,2473.6,0.40431]
[1728322652088,0.4043,2473.8,2473.7,0.40429]
[1728322652398,0.4043,2473.8,2473.7,3.56429]
[1728322652988,0.3951,2474.2,2474.0,0.40424]
[1728322653188,3.6103,2474.3,2474.2,0.40423]
[1728322653390,3.2078,2474.3,2474.2,0.40423]
[1728322653595,3.2078,2474.3,2474.2,0.82193]
[1728322653999,3.61201,2474.3,2474.2,0.82193]
[1728322654291,3.2078,2474.3,2474.2,0.82193]
[1728322654691,3.61201,2474.3,2474.2,0.82193]
[1728322654888,3.2078,2474.3,2474.2,0.82193]
[1728322655083,3.61201,2474.3,2474.2,0.82193]
[1728322655794,3.2078,2474.3,2474.2,4.86353]
[1728322656199,0.4042,2474.4,2474.2,4.4593]
[1728322656499,0.4042,2474.4,2474.3,3.56421]
[1728322657090,0.80237,2474.6,2474.5,0.40418]
[1728322657293,0.80237,2474.6,2474.5,3.56418]
[1728322657497,0.40416,2474.7,2474.5,3.16]
[1728322657793,0.40416,2474.7,2474.6,3.56416]
[1728322658489,0.81064,2474.8,2474.7,0.40415]
[1728322659491,0.40415,2474.7,2474.6,3.16]
[1728322659693,0.40416,2474.6,2474.5,3.16]
[1728322659891,0.40419,2474.4,2474.3,3.16]
[1728322660791,0.40423,2474.2,2474.1,3.56423]
[1728322661196,0.8293,2474.3,2474.2,0.40423]
[1728322661397,0.8293,2474.3,2474.2,3.56423]
[1728322662294,1.23351,2474.3,2474.2,3.56423]
[1728322666204,0.8293,2474.3,2474.2,3.56423]
[1728322666518,1.23351,2474.3,2474.2,3.56423]
[1728322681299,1.23351,2474.3,2474.2,3.16]
[1728322681605,0.40428,2474.0,2473.9,0.40426]
[1728322683103,0.40428,2474.0,2473.6,1.41769]
[1728322683104,0.40429,2473.9,2473.8,0.40428]
[1728322683403,1.23299,2473.9,2473.8,0.40428]
[1728322683602,0.8287,2473.9,2473.6,3.5669]
[1728322683812,0.40431,2473.8,2473.7,0.4043]
[1728322686408,0.40429,2473.9,2473.8,0.40427]
[1728322686702,0.40429,2473.9,2473.8,3.56427]
[1728322689803,0.40429,2473.9,2473.8,3.56429]
[1728322690003,0.40429,2473.9,2473.8,3.16]
[1728322690204,0.40429,2473.9,2473.8,3.56429]
[1728322694409,0.40429,2473.9,2473.8,1.86429]
[1728322694805,1.42874,2474.1,2473.8,1.46]
[1728322695004,1.42874,2474.1,2474.0,1.46]
[1728322695005,0.4181,2474.1,2474.0,1.46]
[1728322695211,0.82234,2474.1,2474.0,1.86426]
[1728322701112,0.40424,2474.1,2474.0,1.86426]
[1728322701308,4.21836,2474.3,2474.0,1.46]
[1728322701516,4.21836,2474.3,2473.8,0.8401]
[1728322701713,3.61201,2474.3,2474.2,1.46]
[1728322702723,3.2078,2474.3,2474.1,1.46]
[1728322703023,0.40423,2474.2,2474.1,1.46]
[1728322703218,0.40423,2474.2,2474.1,1.86424]
[1728322704617,0.40423,2474.2,2474.1,1.46]
[1728322708327,0.40423,2474.2,2474.1,1.86424]
[1728322708517,0.40423,2474.2,2474.1,1.46]
[1728322708817,0.40423,2474.2,2474.1,1.86424]
[1728322712824,0.40423,2474.2,2474.1,1.46]
[1728322713124,0.40423,2474.2,2474.1,1.86424]
[1728322714627,0.40423,2474.2,2474.1,1.46]
[1728322717037,0.40426,2474.0,2473.9,0.40427]
[1728322719636,0.40428,2473.9,2473.8,0.40428]
[1728322719835,0.40428,2473.9,2473.7,3.2078]
[1728322720145,0.40429,2473.8,2473.7,3.2078]
[1728322721635,0.40435,2473.5,2473.4,0.40433]
[1728322721840,0.40435,2473.5,2473.4,1.86433]
[1728322722241,2.2271,2473.7,2473.4,1.46]
[1728322722444,0.40434,2473.6,2473.5,0.40433]
[1728322725539,2.6763,2473.7,2473.3,1.2385]
[1728322725843,2.6763,2473.7,2473.2,0.40437]
[1728322725844,0.40439,2473.3,2473.2,0.40437]
[1728322727054,0.40439,2473.3,2473.2,1.86437]
[1728322727359,1.01082,2473.6,2473.2,1.86437]
[1728322727360,0.40437,2473.4,2473.3,0.40435]
[1728322727559,0.40434,2473.6,2473.5,0.40433]
[1728322727759,0.40434,2473.6,2473.5,1.86433]
[1728322727956,0.79452,2473.7,2473.6,0.40432]
[1728322728256,4.0419,2473.9,2473.6,1.46]
[1728322728457,0.40431,2473.8,2473.7,0.4043]
[1728322728647,0.40431,2473.7,2473.6,1.86431]
[1728322730751,0.40431,2473.7,2473.6,1.46]
[1728322741369,1.01074,2473.8,2473.6,1.46]
[1728322741370,0.40431,2473.8,2473.7,0.40429]
[1728322741771,0.40431,2473.7,2473.6,1.86431]
[1728322742072,0.40431,2473.7,2473.6,42.66431]
[1728322742265,0.40431,2473.7,2473.6,46.70671]
[1728322742466,3.61211,2473.7,2473.6,40.8]
[1728322742666,3.61211,2473.7,2473.5,0.3903]
[1728322742667,0.40432,2473.6,2473.5,0.3903]
[1728322743774,0.40432,2473.6,2473.5,2.25464]
[1728322744267,0.40432,2473.6,2473.5,1.8503]
[1728322744966,0.40432,2473.6,2473.5,2.25464]
[1728322745165,0.40432,2473.6,2473.5,1.8503]
[1728322745572,0.40432,2473.6,2473.5,2.25464]
[1728322745768,0.40432,2473.7,2473.6,0.40431]
[1728322746365,0.40432,2473.6,2473.5,2.25462]
[1728322746764,0.40431,2473.7,2473.6,0.40431]
[1728322746970,0.40429,2473.9,2473.8,0.40428]
[1728322747162,3.6346,2474.0,2473.8,1.46]
[1728322747369,3.61207,2474.0,2473.9,1.23308]
[1728322747567,3.61207,2474.0,2473.9,1.64398]
[1728322748267,0.4268,2474.2,2474.1,0.40424]
[1728322748475,0.4268,2474.2,2474.1,1.86424]
[1728322748476,0.40423,2474.2,2474.1,1.86424]
[1728322749671,3.2078,2474.3,2474.1,1.46]
[1728322749870,3.2078,2474.3,2474.2,0.40423]
[1728322749871,3.61203,2474.3,2474.2,0.40423]
[1728322750171,3.2078,2474.3,2474.2,0.40423]
[1728322750665,0.40421,2474.4,2474.1,1.46]
[1728322750871,0.40421,2474.4,2474.3,1.86421]
[1728322751670,1.01043,2474.6,2474.3,1.46]
[1728322751870,0.40419,2474.5,2474.4,0.4068]
[1728322753877,0.40419,2474.5,2474.4,1.2237]
[1728322754878,0.40417,2474.6,2474.5,0.40417]
[1728322755068,0.40417,2474.6,2474.5,1.86417]
[1728322757381,0.4165,2474.8,2474.7,0.40415]
[1728322757574,3.2078,2475.0,2474.6,1.46]
[1728322757872,0.80986,2474.7,2474.6,1.86416]
[1728322758077,0.80985,2474.7,2474.6,1.86416]
[1728322758664,0.80985,2474.7,2474.6,42.66416]
[1728322759271,0.80985,2474.7,2474.6,1.86416]
[1728322759573,0.4057,2474.7,2474.6,1.86416]
[1728322759776,0.40412,2474.9,2474.8,0.40413]
[1728322760075,0.40412,2474.9,2474.8,1.86413]
[1728322761587,0.40412,2474.9,2474.8,0.40413]
[1728322762171,0.40412,2474.9,2474.7,1.46]
[1728322762172,0.40413,2474.8,2474.7,1.86414]
[1728322762373,0.40413,2474.8,2474.7,1.46]
[1728322762680,0.40413,2474.8,2474.7,1.86415]
[1728322762980,0.40413,2474.8,2474.7,1.46]
[1728322763186,0.40413,2474.8,2474.7,1.86415]
[1728322765579,0.40412,2474.9,2474.8,0.40411]
[1728322765771,0.40412,2474.9,2474.8,1.86411]
[1728322768483,4.62968,2475.0,2474.7,1.46]
[1728322768670,4.62968,2475.0,2474.4,1.2237]
[1728322768671,0.40414,2474.8,2474.4,1.2237]
[1728322768873,0.40418,2474.6,2474.5,0.40417]
[1728322769278,0.82868,2474.6,2474.5,0.40417]
[1728322769474,0.4245,2474.6,2474.5,0.40417]
[1728322769673,0.40416,2474.7,2474.6,0.40415]
[1728322775582,0.40416,2474.7,2474.4,0.8026]
[1728322775779,0.40419,2474.5,2474.4,0.40418]
[1728322775979,2.47041,2474.7,2474.3,1.46]
[1728322776278,1.65139,2474.4,2474.3,1.8642]
[1728322779381,1.2472,2474.4,2474.3,1.8642]
[1728322780174,1.65139,2474.4,2474.3,1.8642]
[1728322780682,1.2472,2474.4,2474.3,1.8642]
[1728322780985,1.65139,2474.4,2474.3,1.8642]
[1728322781186,1.2472,2474.4,2474.3,1.8642]
[1728322785888,0.3963,2474.4,2474.3,1.8642]
[1728322786795,3.2078,2474.7,2474.6,0.40416]
[1728322787095,0.4,2474.7,2474.6,0.40416]
[1728322788079,0.4,2474.7,2474.6,1.01043545]
[1728322788281,0.4,2474.7,2474.6,0.40416]
[1728322788690,0.4,2474.7,2474.6,1.01054794]
[1728322790897,0.82622,2474.9,2474.6,0.60638794]
[1728322791098,0.82622,2474.9,2474.8,0.40413]
[1728322791295,0.82622,2474.9,2474.8,1.01051794]
[1728322792193,0.40414,2474.8,2474.7,0.40414]
[1728322792392,0.40414,2474.8,2474.7,1.98315001]
[1728322794299,0.40414,2474.8,2474.7,3.19186558]
[1728322794598,0.40414,2474.8,2474.7,1.98315001]
[1728322795295,0.40414,2474.8,2474.7,0.40414]
[1728322795494,0.40414,2474.8,2474.7,1.97588118]
[1728322795890,0.40414,2474.8,2474.7,3.18490545]
[1728322796090,0.40414,2474.8,2474.7,1.97588118]
[1728322796898,0.4221,2474.9,2474.8,0.40413]
[1728322796899,0.40412,2474.9,2474.8,0.40413]
[1728322797200,0.40412,2474.9,2474.8,1.97587118]
[1728322798794,0.40412,2474.9,2474.8,0.40413]
[1728322799101,5.67130233,2474.9,2474.8,1.97645943]
[1728322799292,5.67130233,2474.9,2474.8,1.57232943]
[1728322800205,5.67130233,2474.9,2474.8,1.97645943]
[1728322800898,0.40412,2474.9,2474.8,1.97645943]
[1728322801297,0.40412,2474.9,2474.8,0.40413]
[1728322801492,0.40412,2474.9,2474.8,1.96792847]
[1728322803205,0.40412,2474.9,2474.8,1.00559095]
[1728322805502,0.40412,2474.9,2474.8,0.60146095]
[1728322805801,0.40412,2474.9,2474.2,0.40421]
[1728322805802,0.40422,2474.3,2474.2,0.40421]
[1728322806006,0.40422,2474.3,2474.2,1.36669063]
[1728322806204,0.40422,2474.3,2474.2,0.40421]
[1728322806805,1.78357474,2474.5,2474.1,1.8476]
[1728322807006,0.40421,2474.4,2474.3,0.4042]
[1728322807406,4.44581,2474.4,2474.3,0.4042]
[1728322808912,4.86951,2474.4,2474.3,0.4042]
[1728322809402,0.40423,2474.2,2474.1,0.40424]
[1728322809611,1.86423,2474.2,2474.1,0.40424]
[1728322809798,2.66893,2474.2,2474.1,0.40424]
[1728322809995,0.40426,2474.1,2474.0,0.40425]
[1728322810204,0.40426,2474.1,2473.8,0.402]
[1728322810205,0.40428,2473.9,2473.8,0.80627]
[1728322810595,0.82847,2474.0,2473.9,0.40428]
[1728322810801,0.82847,2474.0,2473.9,1.86428]
[1728322810802,0.4242,2474.0,2473.9,1.86428]
[1728322811799,0.82846,2474.0,2473.9,0.40428]
[1728322813398,0.40428,2473.9,2473.8,0.80628]
[1728322814507,0.4043,2473.8,2473.4,2.47089]
[1728322814710,1.2254,2473.8,2473.7,0.4043]
[1728322815810,0.8211,2473.8,2473.7,0.4043]
[1728322816201,1.22539,2473.8,2473.7,0.4043]
[1728322816908,1.22539,2473.8,2473.6,1.46]
[1728322817113,0.40431,2473.7,2473.6,0.40431]
[1728322817606,4.44671,2473.7,2473.6,0.40431]
[1728322817807,4.0424,2473.7,2473.6,0.40431]
[1728322818107,4.0424,2473.7,2473.6,0.40432]
[1728322818312,1.2254,2473.8,2473.7,0.40431]
[1728322818812,5.2678,2473.8,2473.7,0.40431]
[1728322819206,0.40432,2473.7,2473.6,0.40432]
[1728322823412,1.2254,2473.8,2473.7,0.40431]
[1728322823920,5.2678,2473.8,2473.7,0.40431]
[1728322824410,1.2254,2473.8,2473.7,0.40431]
[1728322824614,5.2678,2473.8,2473.7,0.40431]
[1728322825118,5.2678,2473.8,2473.5,0.3906]
[1728322825312,0.40432,2473.6,2473.5,0.3906]
[1728322825714,0.40432,2473.6,2473.5,0.79494]
[1728322827516,3.2078,2473.7,2473.6,0.40432]
[1728322830720,2.22376,2474.1,2473.8,0.40429]
[1728322830721,3.61208,2473.9,2473.8,0.40429]
[1728322831317,3.61208,2473.9,2473.8,0.83229]
[1728322831513,3.2078,2473.9,2473.8,0.83229]
[1728322831712,3.61208,2473.9,2473.8,0.83229]
[1728322832723,3.61208,2473.9,2473.6,0.40431]
[1728322832724,0.40431,2473.7,2473.6,0.40431]
[1728322833322,0.40432,2473.6,2473.5,0.79812]
[1728322834426,0.40432,2473.6,2473.5,0.40432]
[1728322843732,1.21442,2473.7,2473.6,0.40432]
[1728322844031,0.4178,2473.7,2473.6,0.40432]
[1728322844232,3.2078,2473.8,2473.7,0.40431]
[1728322844627,3.2078,2473.8,2473.7,1.86431]
[1728322844831,3.2078,2473.8,2473.7,2.71341]
[1728322845029,3.2078,2473.8,2473.7,1.25341]
[1728322847732,0.40429,2473.9,2473.8,0.40429]
[1728322847935,0.79215,2474.1,2474.0,0.40426]
[1728322848128,1.21045,2474.1,2474.0,0.40426]
[1728322850544,0.40427,2474.0,2473.9,0.40426]
[1728322852137,1.21045,2474.1,2474.0,0.40426]
[1728322853541,0.40427,2474.0,2473.9,0.40426]
[1728322854230,0.40427,2474.0,2473.9,0.96881202]
[1728322855635,0.40427,2474.0,2473.9,0.56455202]
[1728322855841,0.40427,2474.0,2473.9,0.96883202]
[1728322856046,0.40427,2474.0,2473.9,0.40428]
[1728322858338,0.40427,2474.0,2473.9,0.96910802]
[1728322858538,0.40427,2474.0,2473.9,0.40428]
[1728322859239,0.3879,2474.1,2473.9,1.46]
[1728322859442,0.40425,2474.1,2474.0,0.40426]
[1728322859750,0.40425,2474.1,2474.0,1.36138578]
[1728322860248,0.40425,2474.1,2474.0,0.79656]
[1728322860447,0.40425,2474.1,2474.0,1.36138413]
[1728322860644,0.40425,2474.1,2474.0,1.36138551]
[1728322862439,0.40425,2474.1,2474.0,1.76078551]
[1728322862642,0.40425,2474.1,2474.0,1.35652551]
[1728322862851,1.86424,2474.1,2474.0,0.56469721]
[1728322863046,2.25584,2474.1,2474.0,0.56469721]
[1728322863542,0.40434,2473.6,2473.5,0.40433]
[1728322863743,0.40434,2473.6,2473.5,1.87251545]
[1728322864352,0.79592,2473.7,2473.6,0.40432]
[1728322864652,0.79592,2473.7,2473.6,0.96900671]
[1728322865449,0.79592,2473.7,2473.6,0.56468671]
[1728322865450,2.25592,2473.7,2473.6,0.56468671]
[1728322865752,1.01087,2473.5,2473.0,1.46]
[1728322866048,0.40438,2473.3,2473.2,0.40439]
[1728322866242,0.40438,2473.3,2473.2,1.87275483]
[1728322866449,0.40438,2473.3,2473.2,0.40439]
[1728322866746,0.40438,2473.3,2473.2,1.87259446]
[1728322869947,0.8128,2473.4,2473.2,1.46820446]
[1728322870148,1.21716,2473.4,2473.3,0.56469402]
[1728322870360,1.21716,2473.4,2473.3,0.96906402]
[1728322873560,1.21716,2473.4,2473.3,0.56469402]
[1728322873757,1.21716,2473.4,2473.3,0.96906402]
[1728322873950,0.4044,2473.2,2473.1,0.40439]
[1728322874151,0.4044,2473.2,2473.1,0.96884751]
[1728322875259,0.4219,2473.3,2473.1,0.56445751]
[1728322875557,0.4219,2473.3,2472.9,2.4711]
[1728322875558,0.82629,2473.3,2473.2,0.96869388]
[1728322876261,0.82629,2473.3,2473.2,0.40439]
[1728322876561,0.82629,2473.3,2473.2,0.96865126]
[1728322876767,0.82629,2473.3,2473.2,0.40439]
[1728322877765,0.40441,2473.2,2473.1,0.4044]
[1728322877954,0.40441,2473.2,2473.1,0.96861866]
[1728322878753,1.86441,2473.2,2473.1,0.56421866]
[1728322878963,0.40442,2473.0,2472.9,0.40443]
[1728322879153,0.40442,2473.1,2473.0,0.40441]
[1728322881054,5.0722,2473.2,2473.1,0.40441]
[1728322884354,0.40444,2473.0,2472.9,0.40443]
[1728322884558,1.86444,2473.0,2472.9,0.40443]
[1728322884753,6.31334,2473.0,2472.9,0.40443]
[1728322886763,0.4049,2473.0,2472.9,0.40443]
[1728322886973,0.80932,2473.0,2472.9,0.40443]
[1728322887468,0.80932,2473.0,2472.9,0.83053]
[1728322889164,0.80781,2473.1,2473.0,0.40442]
[1728322889366,0.40441,2473.1,2473.0,0.40442]
[1728322896472,6.07138,2473.2,2472.9,0.4261]
[1728322896769,0.40442,2473.0,2472.9,0.83052]
[1728322904275,0.3926,2473.2,2472.9,4.87452]
[1728322904469,0.82629,2473.3,2473.2,0.40439]
[1728322904671,0.40439,2473.3,2473.2,0.40439]
[1728322906076,1.01091,2473.4,2473.0,42.26]
[1728322906275,0.40441,2473.2,2473.1,0.4044]
[1728322907479,0.40441,2473.2,2473.1,4.4476]
[1728322907670,0.40441,2473.2,2473.1,0.96861698]
[1728322908386,0.40441,2473.2,2473.1,5.01181698]
[1728322908774,0.40441,2473.2,2473.1,4.4476]
[1728322908969,0.40441,2473.2,2473.1,5.01203796]
[1728322909379,0.40441,2473.2,2473.1,5.91553039]
[1728322909875,0.40441,2473.2,2473.1,5.35109243]
[1728322910069,0.40441,2473.2,2473.1,5.91578101]
[1728322910871,0.40441,2473.2,2473.1,1.87258101]
[1728322911078,0.40441,2473.2,2473.1,5.91578101]
[1728322911283,1.01094,2473.3,2473.1,5.91578101]
[1728322911284,0.40439,2473.3,2473.2,0.40437]
[1728322911579,0.40439,2473.3,2473.2,1.812655]
[1728322912586,0.40439,2473.3,2473.2,1.81288115]
[1728322914293,0.40437,2473.4,2473.3,0.40436]
[1728322914578,3.61214,2473.6,2473.5,0.40434]
[1728322914785,3.61214,2473.6,2473.5,0.96925115]
[1728322915377,3.61214,2473.6,2473.5,1.86735005]
[1728322915680,3.61214,2473.6,2473.5,0.96925115]
[1728322915882,3.61214,2473.6,2473.5,1.53055233]
[1728322916185,3.61214,2473.6,2473.5,0.96564118]
[1728322916980,3.61214,2473.6,2473.5,1.86361152]
[1728322917385,3.61214,2473.6,2473.5,0.96564118]
[1728322917981,3.61214,2473.6,2473.5,1.86346696]
[1728322918279,3.61214,2473.6,2473.5,0.96564118]
[1728322918483,0.40434,2473.6,2473.5,0.96564118]
[1728322918683,3.61214,2473.6,2473.5,0.96564118]
[1728322919086,3.61214,2473.6,2473.5,0.96541583]
[1728322921483,0.40434,2473.5,2473.4,0.82854]
[1728322921692,0.40434,2473.5,2473.4,1.38953862]
[1728322922285,0.40434,2473.5,2473.4,0.96533862]
[1728322922492,0.81134,2473.5,2473.4,0.96533862]
[1728322922793,2.27134,2473.5,2473.4,0.56099862]
[1728322923386,2.27134,2473.5,2473.2,0.40438]
[1728322923387,0.40439,2473.3,2473.2,0.40437]
[1728322923586,0.40439,2473.3,2473.2,0.96526556]
[1728322923989,0.80199,2473.3,2473.2,0.96526556]
[1728322925090,0.80199,2473.3,2473.2,0.40437]
[1728322925293,0.80199,2473.3,2473.2,0.96526398]
[1728322925889,0.3976,2473.3,2473.2,0.96526398]
[1728322926091,0.80197,2473.3,2473.2,0.96526398]
[1728322928682,0.80197,2473.3,2473.2,0.96179346]
[1728322929299,0.3976,2473.3,2473.2,0.96179346]
[1728322931999,0.3976,2473.3,2473.2,0.40437]
[1728322932298,0.3976,2473.3,2473.2,0.96182365]
[1728322934592,0.80197,2473.3,2473.2,0.96182365]
[1728322935097,5.9008,2473.3,2473.1,0.4044]
[1728322935299,1.86439,2473.2,2473.1,0.4044]
[1728322935697,1.86439,2473.2,2473.1,0.96198349]
[1728322939005,1.86439,2473.2,2473.1,0.4044]
[1728322939200,1.46,2473.2,2473.1,0.95854832]
[1728322939400,1.86439,2473.2,2473.1,0.95854832]
[1728322940698,1.46,2473.2,2473.1,0.95854832]
[1728322941802,1.86439,2473.2,2473.1,0.95854832]
[1728322942199,1.46,2473.2,2473.1,0.95854832]
[1728322942497,1.86439,2473.2,2473.1,0.4044]
[1728322942806,1.86439,2473.2,2473.1,0.95863864]
[1728322943403,1.46,2473.2,2473.1,0.95863864]
[1728322944491,1.86439,2473.2,2473.1,0.95863864]
[1728322945907,1.86439,2473.2,2473.1,0.95871667]
[1728322946207,1.46,2473.2,2473.1,0.95871667]
[1728322946611,1.86439,2473.2,2473.1,0.95871667]
[1728322946800,0.40439,2473.2,2473.1,0.95871667]
[1728322947004,3.2078,2473.3,2473.2,0.40439]
[1728322947507,3.2078,2473.3,2473.2,0.95873936]
[1728322948004,1.41788,2473.5,2473.2,0.95873936]
[1728322948005,0.40434,2473.5,2473.4,0.40436]
[1728322948307,0.094,2474.0,2473.4,3.02521547]
[1728322948508,8.79038512,2474.1,2474.0,0.40426]
[1728322948509,0.40425,2474.1,2474.0,0.40426]
[1728322948715,0.40424,2474.2,2474.1,0.40424]
[1728322949012,0.40426,2474.0,2473.9,0.3996]
[1728322949214,1.86426,2474.0,2473.9,0.55421911]
[1728322949414,0.4043,2473.8,2473.6,0.80391]
[1728322949611,1.46,2473.7,2473.6,0.80391]
[1728322949915,1.46,2473.7,2473.6,1.35803832]
[1728322950116,1.46,2473.7,2473.6,2.24464393]
[1728322950407,1.46,2473.7,2473.6,1.35803832]
[1728322952116,1.8643,2473.8,2473.7,0.40431]
[1728322952322,1.46,2473.8,2473.7,0.95843832]
[1728322952522,1.86429,2473.8,2473.7,0.95843832]
[1728322952720,1.86429,2473.8,2473.7,0.40431]
[1728322952918,1.86429,2473.8,2473.7,0.95517807]
[1728322953219,1.86429,2473.8,2473.7,0.9551701]
[1728322953722,1.86429,2473.8,2473.7,0.40431]
[1728322954715,1.46,2473.8,2473.6,0.3996]
[1728322954919,1.86431,2473.7,2473.6,0.3996]
[1728322955116,2.27971,2473.7,2473.6,0.3996]
[1728322960628,0.40436,2473.4,2473.3,0.80107]
[1728322960830,1.01083,2473.6,2473.4,0.40434]
[1728322960831,1.86436,2473.5,2473.4,0.40434]
[1728322962422,0.40436,2473.5,2473.4,0.40434]
[1728322967931,0.40436,2473.4,2473.3,0.80106]
[1728322968135,0.40436,2473.4,2473.3,1.34842891]
[1728322969829,0.40436,2473.4,2473.3,0.80106]
[1728322970032,1.01086,2473.5,2473.4,0.40434]
[1728322970033,0.40434,2473.5,2473.4,0.40434]
[1728322970530,0.40434,2473.5,2473.4,1.49904574]
[1728322970835,1.51426,2474.0,2473.5,2.02172]
[1728322971025,1.51426,2474.0,2473.4,6.05054632]
[1728322971026,0.49823,2474.2,2474.1,0.40424]
[1728322971225,1.225,2474.3,2474.1,1.46]
[1728322971527,1.22412,2474.3,2474.2,0.40423]
[1728322971727,0.40425,2474.2,2474.1,0.40423]
[1728322971936,0.40425,2474.2,2474.1,1.20313]
[1728322973126,0.8199,2474.3,2474.1,0.7989]
[1728322973333,1.22412,2474.3,2474.2,0.40423]
[1728322974839,0.40423,2474.2,2474.1,1.20313]
[1728322978041,1.22413,2474.3,2474.2,0.40423]
[1728322978434,0.40423,2474.3,2474.2,0.40423]
[1728322979941,1.01051,2474.4,2474.1,1.1911]
[1728322980143,0.40423,2474.2,2474.1,1.59533]
[1728322980546,0.40423,2474.2,2474.1,5.63693]
[1728322981340,0.40423,2474.2,2474.1,0.80154]
[1728322981341,1.86423,2474.2,2474.1,0.80154]
[1728322983237,0.40423,2474.2,2474.1,0.80154]
[1728322989346,0.81433,2474.2,2474.1,0.80154]
[1728322991561,1.22003,2474.2,2474.1,0.80154]
[1728322993845,0.40421,2474.4,2474.3,0.40419]
[1728322994253,3.6026,2474.5,2474.4,0.40419]
[1728322994254,3.2078,2474.5,2474.4,0.40419]
[1728322995055,3.61198,2474.5,2474.4,0.40419]
[1728322999562,0.40421,2474.4,2474.3,0.40419]
[1728322999761,0.81191,2474.4,2474.3,0.40419]
[1728323001959,0.40423,2474.2,2474.1,0.80154]
[1728323002158,0.40426,2474.1,2474.0,0.40424]
[1728323002358,0.81226,2474.1,2474.0,0.40424]
[1728323003460,0.408,2474.1,2474.0,0.40424]
[1728323003655,0.81224,2474.1,2474.0,0.40424]
[1728323004666,0.408,2474.1,2474.0,0.40424]
[1728323004963,0.81224,2474.1,2474.0,0.40424]
[1728323006465,0.408,2474.1,2474.0,0.40424]
[1728323007158,0.81224,2474.1,2474.0,0.40424]
[1728323015474,0.81224,2474.1,2474.0,0.95196946]
[1728323016976,0.81224,2474.1,2474.0,0.54772946]
[1728323017170,2.27224,2474.1,2474.0,0.95198946]
[1728323017471,2.27224,2474.1,2473.9,0.4194]
[1728323017472,0.40426,2474.0,2473.9,0.82366]
[1728323017660,1.21656,2474.0,2473.9,0.82366]
[1728323017976,1.21656,2474.0,2473.9,1.37162052]
[1728323019969,0.8123,2474.0,2473.9,1.37162052]
[1728323020474,0.416,2474.0,2473.9,1.37162052]
[1728323020661,0.81225,2474.1,2474.0,0.40426]
[1728323020867,0.81225,2474.1,2474.0,0.95222052]
[1728323021069,0.81225,2474.1,2474.0,0.95216316]
[1728323022065,3.61203,2474.2,2474.1,0.40424]
[1728323022265,3.61203,2474.2,2474.1,0.80634]
[1728323024575,0.094,2474.7,2474.4,0.40419]
[1728323024576,0.49815,2474.7,2474.4,0.40419]
[1728323024768,0.40414,2474.8,2474.7,0.40413]
[1728323040491,0.40416,2474.7,2474.6,0.40415]
[1728323041083,0.4021,2474.7,2474.6,0.40415]
[1728323041892,0.80804,2474.8,2474.7,0.40415]
[1728323046498,0.40416,2474.6,2474.5,0.81266]
[1728323046891,0.40416,2474.6,2474.5,0.4085]
[1728323047093,0.81576,2474.6,2474.5,0.40418]
[1728323047400,0.81576,2474.6,2474.3,0.3908]
[1728323047401,0.40419,2474.4,2474.3,0.7992]
[1728323047789,2.88202,2474.6,2474.3,0.7992]
[1728323048091,0.40419,2474.5,2474.4,0.40418]
[1728323048796,3.6183,2474.7,2474.6,0.40416]
[1728323048797,4.02245,2474.7,2474.6,0.40416]
[1728323049092,3.6183,2474.7,2474.6,0.40416]
[1728323049800,3.2078,2474.7,2474.6,0.40416]
[1728323050289,0.094,2475.0,2474.9,0.40411]
[1728323050492,0.094,2475.3,2475.2,0.40406]
[1728323050691,0.3934,2475.4,2475.3,0.40405]
[1728323050994,0.3934,2475.4,2475.3,1.86405]
[1728323051501,1.20923,2475.5,2475.4,0.40403]
[1728323051799,1.20923,2475.5,2475.3,1.86403]
[1728323051800,0.40403,2475.4,2475.3,1.86403]
[1728323052302,1.20923,2475.5,2475.4,0.40403]
[1728323053194,0.40403,2475.4,2475.3,1.86404]
[1728323054690,1.20923,2475.5,2475.4,0.40403]
[1728323054888,0.3934,2475.6,2475.5,0.40401]
[1728323055196,3.2078,2475.7,2475.6,0.404]
[1728323055992,3.61178,2475.7,2475.6,0.404]
[1728323057095,0.40398,2475.7,2475.6,0.404]
[1728323057695,0.7994,2475.9,2475.5,1.46]
[1728323057893,0.40397,2475.8,2475.7,0.40397]